Cogmind - Beta 15 @@@ ROGUE MODE // 2025.08.01 @ 00:27:06 Player: Inverisimilidude Result: Destroyed by P-60 Hacker with Shock Rifle Performance ------------- Evolutions (2) 1000 Regions Visited (8) 1600 Robots Destroyed (91) 455 Value Destroyed (2458) 2458 Prototype IDs (6) 120 Alien Tech Used (0) 0 Bonus (319) 319 TOTAL SCORE: 5952 Bonus ------- High Alert Combat Kills 63 Follower Combat Kills 56 Entered Garrisons 200 Cogmind --------- Core Integrity 0/550 Matter 155/300 Energy 100/100 System Corruption 13% Temperature Cool (0) Movement Rolling (130) Ox2 Location -8/Garrison Parts ------- > --- POWER (1) -------- (None) > --- PROPULSION (4) --- Compact Wheel > --- UTILITY (4) ------ High-capacity Storage Unit > --- WEAPON (2) ------- Heavy Flail > --- INVENTORY (20) --- Improved Ion Engine Improved Ion Engine Aluminum Leg Compact Wheel Improved Heat Sink High-capacity Matter Pod (200) Experimental Sensor Array Improved Terrain Scanner Terrain Scan Processor Thief Drone Bay (3/3) Particle Gun Assault Rifle Peak State ------------ > --- POWER ------------ Cooled Ion Engine > --- PROPULSION ------- Light Treads Advanced Treads Advanced Treads Armored Wheel > --- UTILITY ---------- High-capacity Storage Unit Experimental Sensor Array Improved Terrain Scanner Hardened Medium Armor Plating > --- WEAPON ----------- Heavy Assault Rifle Shotgun > --- INVENTORY -------- Improved Ion Engine Improved Ion Engine Wheel Compact Wheel Compact Wheel Compact Wheel Heat Sink High-capacity Matter Pod Terrain Scan Processor Seismic Detector Hardened Medium Armor Plating Hardened Medium Armor Plating Thief Drone Bay Particle Gun Ion Cannon Assault Rifle Heavy Assault Rifle Flak Cannon Rocket Launcher Heavy Flail [Rating: 36] Favorites ----------- Power Ion Engine Engine Ion Engine Power Core Light Nuclear Core Propulsion Light Treads Treads Light Treads Leg Carbon-fiber Leg Wheel Armored Wheel Utility Cooling System Device Cooling System Storage High-capacity Storage Unit Processor Visual Processing Unit Protection Hardened Medium Armor Plating Weapon Heavy Assault Rifle Energy Gun Improved EM Shotgun Energy Cannon Advanced Beam Cannon Ballistic Gun Heavy Assault Rifle Ballistic Cannon Flak Cannon Launcher Rocket Launcher Special Weapon Mining Laser Impact Weapon Heavy Flail Build | -11 -10 -10 -9 -9 -9 -8 -8 -8 ------- Run | Yrd Mat Min Mat Min Exi Min Mat Gar Slots Evolved 4 | . . . 2 . . . 2 . Power . | . . . . . . . . . Propulsion 2 | . . . 1 . . . 1 . Utility 2 | . . . 1 . . . 1 . Weapon . | . . . . . . . . . Parts Attached 70 | 9 9 4 14 5 3 7 9 10 Power 10 | 1 1 1 3 . 1 1 1 1 Engine 8 | 1 1 1 3 . 1 . 1 . Core 2 | . . . . . . 1 . 1 Reactor . | . . . . . . . . . Propulsion 22 | 4 1 1 5 2 . 1 3 5 Treads 11 | 1 1 1 4 1 . . 1 2 Leg 2 | . . . . . . 1 . 1 Wheel 9 | 3 . . 1 1 . . 2 2 Hover . | . . . . . . . . . Flight . | . . . . . . . . . Utility 18 | 2 2 . 2 1 2 3 4 2 Device 11 | 1 1 . 2 1 1 3 2 . Storage 3 | 1 1 . . . 1 . . . Processor 1 | . . . . . . . 1 . Hackware . | . . . . . . . . . Protection 3 | . . . . . . . 1 2 Artifact . | . . . . . . . . . Weapon 20 | 2 5 2 4 2 . 2 1 2 Energy Gun 2 | 1 . . 1 . . . . . Energy Cannon 2 | . . . 1 . . . . 1 Ballistic Gun 10 | 1 3 2 1 1 . 1 1 . Ballistic Cannon 1 | . . . . . . . . 1 Launcher 3 | . 1 . 1 . . 1 . . Special Weapon 1 | . 1 . . . . . . . Impact Weapon 1 | . . . . 1 . . . . Slashing Weapon . | . . . . . . . . . Piercing Weapon . | . . . . . . . . . Special Melee Weapon . | . . . . . . . . . Unidentified Prototypes 6 | . . . 3 1 1 . 1 . Parts Lost 36 | . 1 4 4 6 . 2 . 19 Power 5 | . . 1 1 . . 1 . 2 Propulsion 14 | . . 1 2 3 . 1 . 7 Utility 6 | . . . 1 1 . . . 4 Weapon 11 | . 1 2 . 2 . . . 6 Highest Loss Streak 14 | . 1 4 2 6 . 1 . 14 To Critical Strikes . | . . . . . . . . . Average Backups 14 | 4 8 10 12 13 13 18 19 19 Power 2 | . 1 . 1 4 3 3 2 2 Propulsion 2 | 2 3 2 1 . 1 2 2 4 Utility 4 | . 1 3 4 2 3 5 7 6 Weapon 5 | 1 3 4 5 5 6 6 7 6 Tool/Special . | . . . . . . . . . Unused Backups 18 | . 2 . 2 1 . 2 5 6 Power 2 | . . . . . . 1 . 1 Propulsion 4 | . 1 . . . . 1 1 1 Utility 7 | . . . 1 1 . . 2 3 Weapon 5 | . 1 . 1 . . . 2 1 Tool/Special . | . . . . . . . . . Average Slot Usage (%) 97 | . 100 99 94 99 80 99 99 94 Engine 9 | . 14 14 10 11 10 7 7 8 Core 1 | . . . . . . 3 1 . Treads 16 | . 24 28 26 22 11 2 8 25 Leg 2 | . . . . . . 7 . . Wheel 12 | . 3 . 3 10 22 22 26 6 Device 19 | . 14 14 20 21 22 21 26 16 Storage 11 | . 14 14 11 11 11 11 9 9 Protection 1 | . . . . . . . . 9 Energy Gun 1 | . 6 . . 5 . . . . Ballistic Gun 17 | . 13 27 16 11 1 21 17 6 Impact Weapon 1 | . . . . 4 . . . 7 Peak Build Rating 36 | 7 8 9 18 26 23 24 33 36 Average Rating 18 | 5 7 8 14 21 19 22 30 26 On Entrance 15 | . 7 8 9 18 25 20 23 32 Naked Turns . | . . . . . . . . . Heaviest Build 74 | 14 30 30 38 38 51 56 64 74 Greatest Support 64 | 26 40 40 63 63 28 28 38 64 Greatest Overweight (x) 6 | 2 . . 2 3 1 1 1 6 Average Overweight (x) . | . . . . . . 1 1 . Largest Inventory Capacity 20 | 8 15 15 15 15 20 20 20 20 Average Capacity 17 | 7 9 15 15 15 17 20 20 20 Most Carried 20 | 7 12 14 15 15 15 20 20 20 Average Carried 15 | 4 8 11 14 13 13 18 19 19 Final Capacity 20 | 8 15 15 15 15 20 20 20 20 Final Carried 20 | 7 12 13 15 13 14 19 20 12 Class Distribution -------------------- 61% | Mutant 38% | Scavenger-Mutant Dominant Class ---------------- Mutant | -10/Materials Mutant | -10/Mines Mutant | -9/Materials Mutant | -9/Mines Mutant | -9/Exiles Scavenger-Mutant | -8/Mines Scavenger-Mutant | -8/Materials Mutant | -8/Garrison Resources | -11 -10 -10 -9 -9 -9 -8 -8 -8 ----------- Run | Yrd Mat Min Mat Min Exi Min Mat Gar Matter Collected 2576 | 293 110 280 390 344 56 415 382 306 Remotely . | . . . . . . . . . Salvage Created 2509 | 65 157 56 693 273 . 397 481 387 Parts 189 | 9 17 7 46 13 . 23 47 27 Haulers Intercepted 4 | . . . 3 . . . 1 . Recyclers Shooed 1 | . . . . . . . 1 . Parts Field Recycled . | . . . . . . . . . Retrieved Matter . | . . . . . . . . . Parts Self-Destructed . | . . . . . . . . . Prevented . | . . . . . . . . . Kills | -11 -10 -10 -9 -9 -9 -8 -8 -8 ------- Run | Yrd Mat Min Mat Min Exi Min Mat Gar Combat Hostiles Destroyed 63 | . 8 3 16 5 . 5 12 14 Melee 2 | . . . . . . . . 2 Guns 40 | . 2 3 10 4 . 4 9 8 Cannons 4 | . . . 1 . . . . 3 AOE 15 | . 6 . 5 . . 1 3 . Classes Destroyed 11 | 1 4 . 4 . . 1 . 1 Worker 7 | . 1 . 3 1 . 1 1 . Builder 4 | . . . 1 1 . . 2 . Tunneler 7 | 3 . . . . . 3 1 . Hauler 4 | . . . 3 . . . 1 . Recycler 4 | . . . 2 1 . 1 . . Watcher 2 | . 1 . . . . . 1 . Swarmer 35 | . 6 3 8 3 . 1 7 7 Grunt 17 | . 2 . 6 . . 3 3 3 Sentry 7 | . . . 2 2 . . 2 1 Hunter 2 | . . . . . . 1 . 1 Programmer 2 | . . . . . . . . 2 Best Kill Streak 11 | 2 4 3 11 3 . 2 5 7 Combat Bots Only 7 | . 3 3 4 3 . 2 5 7 Max Kills in Single Turn 4 | 1 3 2 4 1 . 1 2 1 Gunslinging 1 | . . . . . . . 1 . Exploded 3 | . 3 . 2 . . 1 2 . Melee 1 | . . . . . . . . 1 Uniques/NPCs Destroyed . | . . . . . . . . . Combat | -11 -10 -10 -9 -9 -9 -8 -8 -8 -------- Run | Yrd Mat Min Mat Min Exi Min Mat Gar Hostile Shots Fired 482 | . 33 20 58 52 . 26 34 259 Missed 113 | . 7 3 13 12 . 7 7 64 Hits 369 | . 26 17 45 40 . 19 27 195 Projectile 369 | . 26 17 45 40 . 19 27 195 AOE 37 | . . 15 . 22 . . . . Critical Strikes 11 | . . . 3 1 . . . 7 Part Disruptions 1 | . . . . . . . . 1 Damage Taken 5534 | 32 228 562 557 895 . 316 343 2601 Core 906 | . 24 131 69 107 . 15 47 513 Absorbed by Shields . | . . . . . . . . . Core Remaining (%) 63 | 100 . 38 . . . 52 . . Volleys Fired 175 | 10 12 10 40 13 . 23 40 27 Largest 2 | 2 2 2 2 2 . 2 2 2 Hottest 100 | 60 100 40 88 68 . 56 56 93 Shots Fired 344 | 20 22 20 80 24 . 49 78 51 Gun 296 | 20 16 20 69 24 . 48 75 24 Cannon 29 | . . . 3 . . . . 26 Launcher 18 | . 5 . 8 . . 1 3 1 Special 1 | . 1 . . . . . . . Kinetic 298 | 10 13 20 69 15 . 48 75 48 Thermal 6 | . 1 . 3 . . . . 2 Explosive 18 | . 5 . 8 . . 1 3 1 Electromagnetic 22 | 10 3 . . 9 . . . . Robot Hit Streak 14 | 6 4 6 8 14 . 12 13 9 Robot Miss Streak 6 | 3 3 3 5 3 . 2 5 6 Penetration Max . | . . . . . . . . . Secondary Targets 6 | . . . 2 2 . . 2 . Max Gunslinging Chain 1 | . . . 1 1 . . 1 . Shots Hit Robots 240 | 11 12 9 43 20 . 36 50 59 Core Hits 144 | 6 14 4 32 9 . 15 26 38 Critical Kills . | . . . . . . . . . Critical Parts Destroyed 4 | . . . . . . . . 4 Critical Strikes 4 | . . . . . . . . 4 Destroy 1 | . . . . . . . . 1 Smash 3 | . . . . . . . . 3 Melee Attacks 89 | . . . . 4 . . . 85 Impact 89 | . . . . 4 . . . 85 Slashing . | . . . . . . . . . Piercing . | . . . . . . . . . Sneak Attacks 5 | . . . . 3 . . . 2 Combat Hostiles 2 | . . . . . . . . 2 Follow-up Attacks . | . . . . . . . . . Damage Inflicted 5963 | 178 478 119 1178 477 . 542 1059 1932 Guns 2576 | 122 125 119 511 256 . 450 729 264 Cannons 451 | . . . 42 . . . . 409 Explosions 1539 | 56 353 . 625 . . 92 330 83 Melee 1391 | . . . . 215 . . . 1176 Ramming 6 | . . . . 6 . . . . Kinetic 2734 | 57 91 119 511 132 . 450 729 645 Thermal 126 | 56 . . 42 . . . . 28 Explosive 1397 | . 353 . 625 . . 92 244 83 Electromagnetic 309 | 65 34 . . 124 . . 86 . Impact 1391 | . . . . 215 . . . 1176 Slashing . | . . . . . . . . . Piercing . | . . . . . . . . . Highest Corruption 13 | . . . 3 3 3 3 . 13 Average Corruption 3 | . . . 2 3 3 3 . 7 Corruption Purged . | . . . . . . . . . Corruption Blocked . | . . . . . . . . . Effects 87 | . . . 7 19 11 49 . 1 Message Errors 18 | . . . 1 4 3 10 . . Matter Fused 30 | . . . 1 6 2 21 . . Heat Flow Errors 9 | . . . 2 1 2 4 . . Energy Discharges 10 | . . . 2 2 1 5 . . Parts Rejected 2 | . . . . 1 . . . 1 Data Loss (minor) 6 | . . . . 1 3 2 . . Data Loss (major) 3 | . . . . 1 . 2 . . Misfires 4 | . . . . . . 4 . . Alerts 2 | . . . 1 1 . . . . Weapon Failures 3 | . . . . 2 . 1 . . Overload Shots . | . . . . . . . . . Overflow Damage 412 | . . . 36 113 . . 12 251 Projectiles . | . . . . . . . . . Explosions 48 | . . . 36 . . . 12 . Melee 364 | . . . . 113 . . . 251 Knockbacks 22 | . . . . 1 . . . 21 Impact 5 | . . . . 1 . . . 4 Kinetic 17 | . . . . . . . . 17 Secondary . | . . . . . . . . . Self-Inflicted Damage 202 | 33 . . 71 . . 14 46 38 Shots 6 | 1 . . 2 . . 1 1 1 Rammed 2 | . . . . 2 . . . . Targets Rammed 2 | . . . . 2 . . . . Kicked . | . . . . . . . . . Crushed . | . . . . . . . . . Highest Temperature 225 | 40 24 . 225 195 217 168 1 15 Average Temperature 47 | 19 9 . 100 111 116 79 1 6 Received Heat Transfer 498 | . 27 . 192 54 . 27 63 135 Siege Activations . | . . . . . . . . . Martial Activations . | . . . . . . . . . Shielding Activations . | . . . . . . . . . Robots Disrupted . | . . . . . . . . . Combat Hostiles . | . . . . . . . . . Robots Corrupted 4 | . . . . 2 . . . 2 Combat Hostiles 2 | . . . . 1 . . . 1 Parts Fried 8 | . . . . 7 . . . 1 Impact Corruptions 16 | . . . . 4 . . . 12 Robots Melted . | . . . . . . . . . Combat Hostiles . | . . . . . . . . . Parts Melted . | . . . . . . . . . Heat Transferred 211 | 100 . . 74 . . . . 37 Parts Sabotaged . | . . . . . . . . . Parts Stolen . | . . . . . . . . . Parts Stripped . | . . . . . . . . . Power Chain Reactions 1 | 1 . . . . . . . . Alert | -11 -10 -10 -9 -9 -9 -8 -8 -8 ------- Run | Yrd Mat Min Mat Min Exi Min Mat Gar Maximum Alert Level 2 | . . . 1 . . . . 2 Low Security (%) 92 | 100 100 100 97 100 . 100 100 45 Level 1 4 | . . . 2 . . . . 29 Level 2 3 | . . . . . . . . 25 Level 3 . | . . . . . . . . . Level 4 . | . . . . . . . . . Level 5 . | . . . . . . . . . High Security . | . . . . . . . . . Max Security . | . . . . . . . . . Peak Influence 601 | 5 99 73 214 130 . 73 168 601 Initial 89 | . . 3 . 60 . . . 89 Average 64 | . 50 3 81 15 . 14 67 295 Influence Increases 2377 | 15 275 70 514 135 . 299 413 656 Destroy 0b10 Robot/C 1340 | . 160 60 320 100 . 180 240 280 Destroy 0b10 Robot/NC 145 | 15 10 . 45 15 . 25 30 5 Destroy Leader 232 | . 32 10 76 10 . 30 54 20 Allied During Kill 14 | . . . . . . 14 . . Trap Triggered on 0b10 10 | . . . . 10 . . . . Successful Hack 29 | . 19 . . . . . 10 . Disable Machine 135 | . 15 . 15 . . 45 60 . Anti-Garrison Action 250 | . . . . . . . . 250 Destroy Structure 222 | . 39 . 58 . . 5 19 101 Influence Decreases 1822 | 15 267 78 358 291 . 299 275 239 Entered New Map 150 | . . 5 . 96 . . . 49 Time Decay 1364 | 15 257 73 318 169 . 257 275 . Lost Part 276 | . 10 . 40 26 . 10 . 190 Lost Ally 32 | . . . . . . 32 . . Squads Dispatched 5 | . . . 2 . . 1 2 . Investigation 3 | . . . . . . 1 2 . Extermination . | . . . . . . . . . Reinforcement 2 | . . . 2 . . . . . Assault . | . . . . . . . . . Garrison . | . . . . . . . . . Intercept . | . . . . . . . . . Searches Triggered . | . . . . . . . . . Construction Impeded 1 | . . . 1 . . . . . Haulers Reinforced . | . . . . . . . . . Active Scanning Responses . | . . . . . . . . . Cargo Convoy Interrupts . | . . . . . . . . . Stealth | -11 -10 -10 -9 -9 -9 -8 -8 -8 --------- Run | Yrd Mat Min Mat Min Exi Min Mat Gar Distress Signals 4 | . 1 . 2 . . . 1 . Communications Jammed . | . . . . . . . . . Distress Signals . | . . . . . . . . . Times Spotted 87 | . 15 3 20 7 . 10 16 16 Peak Tracking Total 6 | . 5 2 5 3 . 4 5 6 Tactical Retreats 1 | . . . . 1 . . . . Traps | -11 -10 -10 -9 -9 -9 -8 -8 -8 ------- Run | Yrd Mat Min Mat Min Exi Min Mat Gar Traps Triggered 3 | . . . 2 . . . . 1 Indirectly . | . . . . . . . . . Trap Hack Attempts . | . . . . . . . . . Triggered . | . . . . . . . . . Disarmed . | . . . . . . . . . Reprogrammed . | . . . . . . . . . Reused 1 | . . . . 1 . . . . Traps Extracted . | . . . . . . . . . Installed 3 | . . 1 1 1 . . . . Triggered 1 | . . . . 1 . . . . Most Traps Carried 3 | . . 3 2 1 . . . . Machines | -11 -10 -10 -9 -9 -9 -8 -8 -8 ---------- Run | Yrd Mat Min Mat Min Exi Min Mat Gar Machines Disabled 12 | . 1 . 1 . . 3 4 3 Max in Single Turn 3 | . 1 . 1 . . 2 3 1 Garrison Relay 5 | . . . . . . . . 5 Machines Repaired . | . . . . . . . . . Machines Dismantled . | . . . . . . . . . Machines Sabotaged . | . . . . . . . . . Overloaded Fab Kills . | . . . . . . . . . Hacking | -11 -10 -10 -9 -9 -9 -8 -8 -8 --------- Run | Yrd Mat Min Mat Min Exi Min Mat Gar Machines Accessed 16 | . 4 . 4 1 . 2 4 1 Terminals 12 | . 4 . 3 . . 2 2 1 Fabricators . | . . . . . . . . . Repair Stations . | . . . . . . . . . Recycling Units . | . . . . . . . . . Scanalyzers 2 | . . . 1 . . . 1 . Garrison Access 1 | . . . . . . . 1 . Total Hacks 40 | . 12 . 11 1 . 5 9 2 Successful 14 | . 6 . . 1 . 1 5 1 Failed 26 | . 6 . 11 . . 4 4 1 Catastrophic 4 | . 1 . 1 . . . 1 1 Database Lockouts . | . . . . . . . . . Manual 24 | . 3 . 10 . . 5 5 1 Terminals 32 | . 12 . 10 . . 5 3 2 Fabricators . | . . . . . . . . . Repair Stations . | . . . . . . . . . Recycling Units . | . . . . . . . . . Scanalyzers 4 | . . . 1 . . . 3 . Garrison Access 3 | . . . . . . . 3 . Terminal Hacks 8 | . 5 . . 1 . . 1 1 Robot Analysis 1 | . 1 . . . . . . . Open Door 1 | . . . . 1 . . . . Branch Access Points 2 | . 1 . . . . . 1 . Emergency Access Points 1 | . . . . . . . . 1 Terminal Index 1 | . 1 . . . . . . . Locate Traps 1 | . 1 . . . . . . . Hauler Manifests 1 | . 1 . . . . . . . Fabricator Hacks . | . . . . . . . . . Repair Station Hacks . | . . . . . . . . . Recycling Unit Hacks . | . . . . . . . . . Scanalyzer 2 | . . . . . . . 2 . Insert Component 1 | . . . . . . . 1 . Analyze 1 | . . . . . . . 1 . Garrison Access Hacks 1 | . . . . . . . 1 . Unlock Access 1 | . . . . . . . 1 . Unauthorized Hacks 3 | . 1 . . . . 1 1 . Terminals 3 | . 1 . . . . 1 1 . Operators 2 | . 1 . . . . . 1 . Sabotage 1 | . . . . . . 1 . . Fabricators . | . . . . . . . . . Repair Stations . | . . . . . . . . . Recycling Units . | . . . . . . . . . Scanalyzers . | . . . . . . . . . Garrison Access . | . . . . . . . . . Data Cores Recovered . | . . . . . . . . . Used . | . . . . . . . . . Hacking Detections 13 | . 3 . 4 . . 2 3 1 Full Trace Events 5 | . . . 2 . . 1 2 . Feedback Events . | . . . . . . . . . Feedback Blocked . | . . . . . . . . . Robot Schematics Acquired . | . . . . . . . . . Robots Built . | . . . . . . . . . Authchips . | . . . . . . . . . Time . | . . . . . . . . . Total Robot Build Rating . | . . . . . . . . . Part Schematics Acquired 1 | . . . . . . . 1 . Parts Built . | . . . . . . . . . Authchips . | . . . . . . . . . Time . | . . . . . . . . . Total Part Build Rating . | . . . . . . . . . Parts Repaired . | . . . . . . . . . Time . | . . . . . . . . . Parts Recycled . | . . . . . . . . . Recycled Matter . | . . . . . . . . . Retrieved Matter . | . . . . . . . . . Retrieved Components . | . . . . . . . . . Parts Scanalyzed 1 | . . . . . . . 1 . Part Schematics Acquired 1 | . . . . . . . 1 . Parts Damaged . | . . . . . . . . . Bothacking | -11 -10 -10 -9 -9 -9 -8 -8 -8 ------------ Run | Yrd Mat Min Mat Min Exi Min Mat Gar Used RIF Installer . | . . . . . . . . . Robots Hacked . | . . . . . . . . . Non-combat . | . . . . . . . . . Combat . | . . . . . . . . . Robot Hacks Applied . | . . . . . . . . . Relay Couplers Released 19 | . . . . . . . . 19 Machine Destruction 19 | . . . . . . . . 19 Fabnet Peak Effective % . | . . . . . . . . . Robots Rewired . | . . . . . . . . . Allies Hacked . | . . . . . . . . . Hacks Repelled . | . . . . . . . . . Allies | -11 -10 -10 -9 -9 -9 -8 -8 -8 -------- Run | Yrd Mat Min Mat Min Exi Min Mat Gar Total Allies 4 | . . . . 4 . . . . Largest Group 3 | . . . . 3 3 3 . . Highest-Rated Group 40 | . . . . 40 40 40 . . Highest-Rated Ally 31 | . . . . 31 16 16 . . Total Orders 1 | . . . . . 1 . . . RETURN 1 | . . . . . 1 . . . Ally Attacks 23 | . . . . . . 23 . . Total Damage 248 | . . . . . . 248 . . Kills 4 | . . . . . . 4 . . Allies Corrupted . | . . . . . . . . . Allies Melted . | . . . . . . . . . Intel | -11 -10 -10 -9 -9 -9 -8 -8 -8 ------- Run | Yrd Mat Min Mat Min Exi Min Mat Gar Active Infowar (turns) 10419 | 16 615 1859 1184 1192 306 3122 850 1275 Optics 2 | . . . . . . . 2 . Sensors 6588 | . 351 1859 1184 1192 306 853 838 5 Terrain 3120 | . . . . . . 2264 850 6 Seismic 2285 | 16 264 . . . . 5 730 1270 Robot Analysis Total 1 | . 1 . . . . . . . Derelict Logs Recovered 3 | . . 2 . 1 . . . . Drone Launches 3 | . . . . . 3 . . . Drone Recoveries 3 | . . . . . 3 . . . Exploration | -11 -10 -10 -9 -9 -9 -8 -8 -8 ------------- Run | Yrd Mat Min Mat Min Exi Min Mat Gar Turns Passed 11284 | 209 618 1859 1236 1212 464 3378 850 1458 Spaces Moved 5321 | 131 376 604 490 860 428 1404 540 488 Core 7 | 7 . . . . . . . . Treads 2168 | 64 309 604 373 342 . . . 476 Legs . | . . . . . . . . . Wheels 3146 | 60 67 . 117 518 428 1404 540 12 Hover . | . . . . . . . . . Flight . | . . . . . . . . . Fastest Speed 50 | 50 90 160 120 110 95 110 105 105 Average Speed 131 | 122 147 160 152 130 105 110 105 177 Slowest Speed 230 | 160 160 160 160 160 110 110 110 230 Overloaded Moves . | . . . . . . . . . Propulsion Burnouts . | . . . . . . . . . Robots Hopped 1 | . . 1 . . . . . . Potential Cave-ins . | . . . . . . . . . Cave-ins Triggered . | . . . . . . . . . Exploration Rate (%) 64 | 7 69 99 43 100 72 102 47 45 Regions Visited 8 Branch Regions 4 Pre-discovered Areas 1 | . . 1 . . . . . . Known Exits Taken 3 | . 1 . . . . 1 1 . Unknown Exits Taken 5 | 1 . 1 1 1 1 . . . Scrap Searched 3 | . . 1 . 1 . 1 . . Spaces Dug 32 | . . . . . . . . 32 Terrain Destroyed 155 | . 36 . 59 . . 7 17 36 Melee 32 | . . . . . . . . 32 Projectile . | . . . . . . . . . AOE 123 | . 36 . 59 . . 7 17 4 Terrain Rammed . | . . . . . . . . . Walls Destroyed . | . . . . . . . . . Machines Disabled . | . . . . . . . . . Actions | -11 -10 -10 -9 -9 -9 -8 -8 -8 --------- Run | Yrd Mat Min Mat Min Exi Min Mat Gar Total 9135 | 156 417 1476 901 915 441 3187 746 896 Wait 3330 | . 1 853 328 16 4 1736 122 270 Move 5311 | 130 375 601 489 859 427 1403 539 488 Hop 1 | . . 1 . . . . . . Pick Up 60 | 7 9 5 11 6 . 8 11 3 Fast Attach 26 | 7 2 . 7 2 . 3 4 1 Attach 37 | . 1 4 5 5 3 2 6 11 Detach 11 | . . . 3 . 4 1 3 . Swap 50 | 2 9 . 7 4 1 9 8 10 Drop 39 | . 8 1 10 3 2 2 13 . Fire 175 | 10 12 10 40 13 . 23 40 27 Melee 89 | . . . . 4 . . . 85 Ram . | . . . . . . . . . Kick . | . . . . . . . . . Crush 2 | . . . . 2 . . . . Escape Stasis . | . . . . . . . . . Rewire 1 | . . . . . . . . 1 Trap 3 | . . 1 1 1 . . . . Miscellaneous . | . . . . . . . . . Route ------- -11/Scrapyard -10/Materials (discovered 2 exits: *Mat / *Min) -10/Mines (discovered 3 exits: *Mat x2 / [*Sub]) -9/Materials (discovered 4 exits: *Mat x3 / *Min) -9/Mines (discovered 4 exits: *Mat x2 / [*Exi] / [*Zio]) -9/Exiles (discovered 2 exits: *Min x2) -8/Mines (discovered 2 exits: *Mat x2) -8/Materials -8/Garrison History --------- Turn | Location | Event 38 | -11/Scrapyard | Discovered new exit (range 14) 210 | -11/Scrapyard | Entered Materials 258 | -10/Materials | Identified exit to Mines 317 | -10/Materials | Build established: Mutant 463 | -10/Materials | Discovered new exit (range 15) 828 | -10/Materials | Entered Mines 829 | -10/Mines | Assembled infested the area 834 | -10/Mines | Assisted by a Guerilla fighting off Assembled 1071 | -10/Mines | Found a Scrap Suit stashed away for nefarious purposes 1086 | -10/Mines | Received a Rocket Launcher from a helpful Derelict 1118 | -10/Mines | Core integrity fell below 50% 1152 | -10/Mines | Discovered new exit (range 11) 1160 | -10/Mines | Lost 4 parts (1p1n2w) 1193 | -10/Mines | Learned location of Storage (-7) 1355 | -10/Mines | Learned location of 1 exit from Materials 1441 | -10/Mines | Found Scrap Suit 1564 | -10/Mines | Discovered new exit (range 8) 1592 | -10/Mines | Learned 2 Materials zone layouts 1813 | -10/Mines | Found a hidden stash of uninstalled traps 1863 | -10/Mines | A weapon hastily lodged in a ceiling crevice suddenly fell to the ground 1903 | -10/Mines | Discovered new exit (range 9) 2687 | -10/Mines | Entered Materials 2687 | -9/Materials | Evolved 2 slots: Propulsion x1, Utility x1 2688 | -9/Materials | Identified exit to Materials 3188 | -9/Materials | Discovered new exit (range 13) 3686 | -9/Materials | Discovered exit to Materials (range 8) 3923 | -9/Materials | Entered Mines 3975 | -9/Mines | Deemed a non-threat by the Exiles lab entrance 3977 | -9/Mines | Discovered new exit (range 5) 4069 | -9/Mines | Discovered exit to Materials (range 6) 4077 | -9/Mines | Received a Mining Laser from a helpful Derelict 4112 | -9/Mines | A Derelict revealed a hidden shortcut to a safe place 4284 | -9/Mines | Discovered exit to Materials (range 9) 4415 | -9/Mines | Found a damaged Exp. Sensor Array with a note attached 4444 | -9/Mines | Found Prototype Device 4590 | -9/Mines | Identified Exp. Sensor Array 4601 | -9/Mines | Lost 6 parts (3n1u2w) 4676 | -9/Mines | Assisted by bots powering up and referring to "LRC-V3" 4808 | -9/Mines | Learned 2 Materials zone layouts 4814 | -9/Mines | Found the Drone Emporium 4821 | -9/Mines | Found Prototype Device 5135 | -9/Mines | Entered Exiles 5135 | -9/Exiles | Accompanied by 3 allies 5156 | -9/Exiles | Discovered new exit (range 15) 5193 | -9/Exiles | Met 8R-AWN 5208 | -9/Exiles | Met EX-HEX 5247 | -9/Exiles | Met EX-DEC 5371 | -9/Exiles | Identified Thief Drone Bay 5415 | -9/Exiles | Met EX-BIN 5578 | -9/Exiles | Discovered new exit (range 14) 5599 | -9/Exiles | Entered Mines 5599 | -8/Mines | Accompanied by 3 allies 5831 | -8/Mines | Discovered exit to Materials (range 8) 5902 | -8/Mines | Build established: Scavenger-Mutant 6451 | -8/Mines | Discovered exit to Materials (range 8) 8977 | -8/Mines | Entered Materials 8977 | -8/Materials | Evolved 2 slots: Propulsion x1, Utility x1 9804 | -8/Materials | Identified exit to Garrison 9827 | -8/Materials | Entered Garrison 10006 | -8/Garrison | Garrison Relay disabled 10099 | -8/Garrison | Build established: Mutant 10249 | -8/Garrison | Triggered checkpoint 10719 | -8/Garrison | Triggered checkpoint 10723 | -8/Garrison | Triggered checkpoint 10776 | -8/Garrison | Destroyed 7 combat bots 10881 | -8/Garrison | Triggered checkpoint 10952 | -8/Garrison | Garrison Relay disabled 11055 | -8/Garrison | Triggered checkpoint 11144 | -8/Garrison | Lost 3 parts (2u1w) 11200 | -8/Garrison | Garrison Relay disabled 11230 | -8/Garrison | Garrison Relay disabled 11240 | -8/Garrison | Garrison Relay disabled 11252 | -8/Garrison | Core integrity fell below 50% 11254 | -8/Garrison | System corruption reached 10% 11274 | -8/Garrison | Core integrity fell below 20% 11285 | -8/Garrison | Destroyed by P-60 Hacker with Shock Rifle Last Messages --------------- corruption cleaned. 11272_ Destroyed Imp. Heat Sink. 11272_ P-60 Hacker system corrupted by crushing effect. 11273_ Ion Cannon destroyed. 11276_ Destroyed Shock Rifle. 11276_ P-60 Hacker system corrupted by crushing effect. 11279_ P-60 Hacker resets P-60 Hacker, system corruption cleaned. 11280_ P-60 Hacker suffers critical hit (Smash). 11280_ Destroyed Remote Datajack. 11280_ Destroyed Gravmag System. 11280_ P-60 Hacker system corrupted by crushing effect. 11282_ Destroyed Mic. Nuclear Core. 11282_ P-60 Hacker system corrupted by crushing effect. 11284_ P-60 Hacker resets P-60 Hacker, system corruption cleaned. Map ----- +----------------------------------------------------+ | #?????# #?# #???????????# #??## ##?????????????? | | #????## #?# #???????????# #?????#??????????????? | | #????#" ###"#############"##############???????? | | #????## ??????? | | #????## ??????? | | ?????#" ??????? | | ?????########"+############ ############ ???????? | | ????????????# #??????????# #???????????????????? | | ????????????#! #??????????# #???????????????????? | | ????????????#%+############ #???????????????????? | | ????????????# *%! #???????????????????? | | ????????????# ! [ #???????????????????? | | ????????????##!!!##### ###+#???????????????????? | | ????????????#"" ""#??# #?# #???????????????????? | | ????????????#######??#####?# #???????????????????? | | ???????????????????????????# #???????????????????? | | ??????????????????????????## ##??????????????????? | | ??????????????????????????# #??????????????????? | | ??????????????????????##### #??????????????????? | | ??????????????????????# %!![! # ###??????????????? | | ??????????????????????# ! ! + ""#??????????????? | | ??????????????????????#p!!#= !# "#??????????????? | | ??????????????????????# ! "#??????????????? | | ??????????????????????# !"! "#??????????????? | | ??????????????????????# " "#??????????????? | | ??????????????????????## @ ##??????????????? | | ???????????????????????# p" "" #???????????????? | | ???????????????????????# # # #???????????????? | | ???????????????????????# + ; #???????????????? | | ???????????????????????# #""" "# #???????????????? | | ???????????????????????###"""""###???????????????? | | ??????????????????????????######?????????????????? | | ?????????????????????????????????????????????????? | | ?????????????????????????????????????????????????? | | ?????????????????????????????????????????????????? | | ?????????????????????????????????????????????????? | | ?????????????????????????????????????????????????? | | ?????????????????????????????????????????????????? | | ?????????????????????????????????????????????????? | | | | | | | | | | | | | | | | | | | | | | | +----------------------------------------------------+ Best States ------------- Heat Dissipation 64 Energy Generation 14 Energy Capacity 280 Matter Stores 300 Matter Capacity 300 Sight Range 16 Robot Scan Range 20 Terrain Scan Range 16 Terrain Scan Density 10 Armor Coverage 450 Evasion (%) 42 Recoil Reduction 3 Item Schematics ----------------- Com. Wheel | -8/Materials | Scanalyzed Robot Schematics ------------------ None Fabricated ------------ Nothing Repaired ---------- Nothing Alien Tech Used ----------------- None Achievements -------------- None Challenges ------------ None Game ------ Seed RelayRiotAxe Manual? 0 Play Time 01:11:31 Cumulative 83.3 hours Start 2025.07.31 @ 23:14:26 End 2025.08.01 @ 00:27:06 Sessions 1 Manual Loads 0 Difficulty Rogue Special Mode None Game No. 106 Rogue 106 Adventurer 0 Explorer 0 Win Type - Total 0 Types 0/0/0/0/0/0/0/0/0/0 Lore% 57 Gallery% 40 Achievement% 39 Wizard Run 0 Options --------- Layout 1 ASCII 0 Keyboard 0 Movement Arrows Keybinds 0 Fullscreen 1 Font 24/Smallcaps Map View 50x35 Zoom Use 0% Tactical HUD 1 Map Filters NONE Filters NONE Steam 1 RUN: dfdbee94-ab56-4376-b8fc-027489b5984f